Cogmind - Beta 15 @@@ ROGUE MODE // 2025.05.15 @ 12:09:05 Player: Cholfo Result: Destroyed by OQ-N0Y(R) with Subdweller Machine Gun Performance ------------- Evolutions (0) 0 Regions Visited (2) 400 Robots Destroyed (13) 65 Value Destroyed (381) 381 Prototype IDs (1) 20 Alien Tech Used (0) 0 Bonus (0) 0 TOTAL SCORE: 866 Bonus ------- None Cogmind --------- Core Integrity 0/250 Matter 138/300 Energy 200/200 System Corruption 3% Temperature Cool (0) Movement Rolling (95) Ox1 Location -10/Subcaves Parts ------- > --- POWER (1) -------- Subdweller Power Source > --- PROPULSION (2) --- Wheel > --- UTILITY (2) ------ Small Storage Unit Signal Interpreter > --- WEAPON (2) ------- Assault Rifle Assault Rifle > --- INVENTORY (8) ---- Light Treads Subdweller Optics Improved Terrain Scanner Seismic Detector Scrap Shield Shield Generator Assault Rifle Peak State ------------ > --- POWER ------------ Subdweller Power Source > --- PROPULSION ------- Wheel Subdweller Monowheel > --- UTILITY ---------- Small Storage Unit Signal Interpreter > --- WEAPON ----------- Improved Medium Laser Assault Rifle > --- INVENTORY -------- Light Treads Improved Terrain Scanner Seismic Detector Shield Generator Subdweller Laser Assault Rifle Assault Rifle Subdweller Machine Gun [Rating: 12] Favorites ----------- Power Subdweller Power Source Engine Subdweller Power Source Propulsion Wheel Wheel Wheel Utility Small Storage Unit Device Seismic Detector Storage Small Storage Unit Processor Signal Interpreter Weapon Assault Rifle Energy Gun Improved Medium Laser Ballistic Gun Assault Rifle Build | -11 -10 -10 ------- Run | Yrd Mat Sub Slots Evolved . | . . . Power . | . . . Propulsion . | . . . Utility . | . . . Weapon . | . . . Parts Attached 20 | 8 5 7 Power 2 | 1 . 1 Engine 2 | 1 . 1 Core . | . . . Reactor . | . . . Propulsion 5 | 2 . 3 Treads . | . . . Leg . | . . . Wheel 5 | 2 . 3 Hover . | . . . Flight . | . . . Utility 5 | 3 2 . Device 3 | 2 1 . Storage 1 | 1 . . Processor 1 | . 1 . Hackware . | . . . Protection . | . . . Artifact . | . . . Weapon 8 | 2 3 3 Energy Gun 5 | 1 3 1 Energy Cannon . | . . . Ballistic Gun 3 | 1 . 2 Ballistic Cannon . | . . . Launcher . | . . . Special Weapon . | . . . Impact Weapon . | . . . Slashing Weapon . | . . . Piercing Weapon . | . . . Special Melee Weapon . | . . . Unidentified Prototypes 1 | . 1 . Parts Lost 1 | . . 1 Power . | . . . Propulsion 1 | . . 1 Utility . | . . . Weapon . | . . . Highest Loss Streak 1 | . . 1 To Critical Strikes . | . . . Average Backups 6 | 3 7 7 Power . | . . . Propulsion 1 | 1 3 1 Utility 3 | . 1 4 Weapon 1 | . 2 1 Tool/Special . | . . . Unused Backups 9 | 1 3 5 Power 1 | . 1 . Propulsion 3 | 1 . 2 Utility 2 | . . 2 Weapon 3 | . 2 1 Tool/Special . | . . . Average Slot Usage (%) 99 | . 100 99 Engine 13 | . 14 13 Wheel 27 | . 28 27 Device 3 | . 14 . Storage 14 | . 14 14 Processor 10 | . . 14 Energy Gun 5 | . 14 2 Ballistic Gun 22 | . 14 25 Peak Build Rating 12 | 9 11 12 Average Rating 9 | 5 9 10 On Entrance 5 | . 7 10 Naked Turns . | . . . Heaviest Build 16 | 13 15 16 Greatest Support 30 | 20 20 30 Greatest Overweight (x) 1 | . . 1 Average Overweight (x) . | . . . Largest Inventory Capacity 8 | 8 8 8 Average Capacity 7 | 6 8 8 Most Carried 8 | 6 8 8 Average Carried 7 | 3 7 7 Final Capacity 8 | 8 8 8 Final Carried 8 | 6 8 8 Class Distribution -------------------- 100% | Mutant Dominant Class ---------------- Mutant | -10/Materials Mutant | -10/Subcaves Resources | -11 -10 -10 ----------- Run | Yrd Mat Sub Matter Collected 511 | 122 120 269 Remotely . | . . . Salvage Created 586 | 107 237 242 Parts 35 | 10 8 17 Haulers Intercepted 1 | . 1 . Recyclers Shooed . | . . . Parts Field Recycled . | . . . Retrieved Matter . | . . . Parts Self-Destructed . | . . . Prevented . | . . . Kills | -11 -10 -10 ------- Run | Yrd Mat Sub Combat Hostiles Destroyed 9 | . 4 5 Guns 9 | . 4 5 Classes Destroyed 5 | 2 2 1 Tunneler 2 | 2 . . Hauler 1 | . 1 . Recycler 1 | 1 . . Grunt 4 | . 4 . Subdweller 5 | . . 5 Best Kill Streak 3 | 3 2 2 Combat Bots Only 2 | . 2 2 Max Kills in Single Turn 1 | 1 1 1 Gunslinging . | . . . Exploded . | . . . Melee . | . . . Uniques/NPCs Destroyed . | . . . Combat | -11 -10 -10 -------- Run | Yrd Mat Sub Hostile Shots Fired 58 | . 20 38 Missed 17 | . 5 12 Hits 41 | . 15 26 Projectile 41 | . 15 26 Critical Strikes 2 | . 1 1 Damage Taken 711 | . 175 536 Core 255 | . 64 191 Absorbed by Shields 18 | . 18 . Core Remaining (%) 100 | 100 . . Volleys Fired 58 | 5 17 36 Largest 2 | 2 2 2 Hottest 80 | 70 76 80 Shots Fired 114 | 10 36 68 Gun 114 | 10 36 68 Cannon . | . . . Launcher . | . . . Special . | . . . Kinetic 82 | 5 18 59 Thermal 32 | 5 18 9 Explosive . | . . . Electromagnetic . | . . . Robot Hit Streak 16 | 5 8 16 Robot Miss Streak 2 | 1 2 2 Penetration Max . | . . . Secondary Targets . | . . . Shots Hit Robots 74 | 7 24 43 Core Hits 25 | 4 8 13 Critical Kills . | . . . Critical Parts Destroyed 1 | . 1 . Critical Strikes 2 | . 1 1 Destroy 2 | . 1 1 Melee Attacks . | . . . Impact . | . . . Slashing . | . . . Piercing . | . . . Sneak Attacks . | . . . Combat Hostiles . | . . . Follow-up Attacks . | . . . Damage Inflicted 942 | 89 350 503 Guns 942 | 89 350 503 Cannons . | . . . Explosions . | . . . Melee . | . . . Ramming . | . . . Kinetic 661 | 51 165 445 Thermal 281 | 38 185 58 Explosive . | . . . Electromagnetic . | . . . Impact . | . . . Slashing . | . . . Piercing . | . . . Highest Corruption 3 | . 3 3 Average Corruption 3 | . 3 3 Corruption Purged . | . . . Corruption Blocked . | . . . Effects 23 | . 5 18 Message Errors 3 | . . 3 Matter Fused 4 | . . 4 Heat Flow Errors 1 | . . 1 Energy Discharges 6 | . 1 5 Parts Rejected 1 | . 1 . Data Loss (minor) 3 | . 1 2 Misfires 3 | . 2 1 Weapon Failures 2 | . . 2 Overload Shots . | . . . Overflow Damage . | . . . Projectiles . | . . . Explosions . | . . . Melee . | . . . Knockbacks . | . . . Impact . | . . . Kinetic . | . . . Secondary . | . . . Self-Inflicted Damage . | . . . Shots . | . . . Rammed . | . . . Targets Rammed . | . . . Kicked . | . . . Crushed . | . . . Highest Temperature 206 | 18 189 206 Average Temperature 50 | 9 55 106 Received Heat Transfer 219 | . 117 102 Siege Activations . | . . . Martial Activations . | . . . Shielding Activations . | . . . Robots Disrupted . | . . . Combat Hostiles . | . . . Robots Corrupted . | . . . Combat Hostiles . | . . . Parts Fried . | . . . Impact Corruptions . | . . . Robots Melted . | . . . Combat Hostiles . | . . . Parts Melted 1 | . . 1 Heat Transferred 605 | 111 407 87 Parts Sabotaged . | . . . Parts Stolen . | . . . Parts Stripped . | . . . Power Chain Reactions . | . . . Alert | -11 -10 -10 ------- Run | Yrd Mat Sub Maximum Alert Level . | . . . Low Security (%) 100 | 100 100 . Level 1 . | . . . Level 2 . | . . . Level 3 . | . . . Level 4 . | . . . Level 5 . | . . . High Security . | . . . Max Security . | . . . Peak Influence 91 | 10 91 . Initial . | . . . Average 30 | 2 40 . Influence Increases 148 | 15 133 . Destroy 0b10 Robot/C 80 | . 80 . Destroy 0b10 Robot/NC 20 | 15 5 . Destroy Leader 12 | . 12 . Successful Hack 5 | . 5 . Disable Machine 15 | . 15 . Destroy Structure 1 | . 1 . Lose Combat Pursuer 15 | . 15 . Influence Decreases 148 | 15 75 58 Entered New Map 29 | . . 29 Time Decay 119 | 15 75 29 Squads Dispatched . | . . . Investigation . | . . . Extermination . | . . . Reinforcement . | . . . Assault . | . . . Garrison . | . . . Intercept . | . . . Searches Triggered . | . . . Construction Impeded . | . . . Haulers Reinforced . | . . . Active Scanning Responses . | . . . Cargo Convoy Interrupts . | . . . Stealth | -11 -10 -10 --------- Run | Yrd Mat Sub Distress Signals . | . . . Communications Jammed . | . . . Distress Signals . | . . . Times Spotted 12 | . 6 6 Peak Tracking Total 2 | . 2 2 Tactical Retreats 1 | . 1 . Traps | -11 -10 -10 ------- Run | Yrd Mat Sub Traps Triggered . | . . . Indirectly . | . . . Trap Hack Attempts . | . . . Triggered . | . . . Disarmed . | . . . Reprogrammed . | . . . Reused . | . . . Traps Extracted . | . . . Installed . | . . . Triggered . | . . . Machines | -11 -10 -10 ---------- Run | Yrd Mat Sub Machines Disabled 1 | . 1 . Max in Single Turn 1 | . 1 . Machines Repaired . | . . . Machines Dismantled . | . . . Machines Sabotaged . | . . . Overloaded Fab Kills . | . . . Hacking | -11 -10 -10 --------- Run | Yrd Mat Sub Machines Accessed 2 | . 2 . Terminals 2 | . 2 . Fabricators . | . . . Repair Stations . | . . . Recycling Units . | . . . Scanalyzers . | . . . Garrison Access . | . . . Total Hacks 6 | . 6 . Successful 4 | . 4 . Failed 2 | . 2 . Catastrophic . | . . . Database Lockouts . | . . . Manual 2 | . 2 . Terminals 6 | . 6 . Fabricators . | . . . Repair Stations . | . . . Recycling Units . | . . . Scanalyzers . | . . . Garrison Access . | . . . Terminal Hacks 2 | . 2 . Locate Traps 2 | . 2 . Fabricator Hacks . | . . . Repair Station Hacks . | . . . Recycling Unit Hacks . | . . . Scanalyzer . | . . . Garrison Access Hacks . | . . . Unauthorized Hacks 2 | . 2 . Terminals 2 | . 2 . Botnet 2 | . 2 . Fabricators . | . . . Repair Stations . | . . . Recycling Units . | . . . Scanalyzers . | . . . Garrison Access . | . . . Data Cores Recovered . | . . . Used . | . . . Hacking Detections 2 | . 2 . Full Trace Events . | . . . Feedback Events . | . . . Feedback Blocked . | . . . Robot Schematics Acquired . | . . . Robots Built . | . . . Authchips . | . . . Time . | . . . Total Robot Build Rating . | . . . Part Schematics Acquired . | . . . Parts Built . | . . . Authchips . | . . . Time . | . . . Total Part Build Rating . | . . . Parts Repaired . | . . . Time . | . . . Parts Recycled . | . . . Recycled Matter . | . . . Retrieved Matter . | . . . Retrieved Components . | . . . Parts Scanalyzed . | . . . Part Schematics Acquired . | . . . Parts Damaged . | . . . Bothacking | -11 -10 -10 ------------ Run | Yrd Mat Sub Used RIF Installer . | . . . Robots Hacked . | . . . Non-combat . | . . . Combat . | . . . Robot Hacks Applied . | . . . Relay Couplers Released . | . . . Fabnet Peak Effective % . | . . . Robots Rewired . | . . . Allies Hacked . | . . . Hacks Repelled . | . . . Allies | -11 -10 -10 -------- Run | Yrd Mat Sub Total Allies . | . . . Largest Group . | . . . Highest-Rated Group . | . . . Highest-Rated Ally . | . . . Total Orders . | . . . Ally Attacks . | . . . Total Damage . | . . . Kills . | . . . Allies Corrupted . | . . . Allies Melted . | . . . Intel | -11 -10 -10 ------- Run | Yrd Mat Sub Active Infowar (turns) 148 | 24 124 . Terrain 15 | 15 . . Seismic 133 | 9 124 . Robot Analysis Total . | . . . Derelict Logs Recovered . | . . . Drone Launches . | . . . Drone Recoveries . | . . . Exploration | -11 -10 -10 ------------- Run | Yrd Mat Sub Turns Passed 1134 | 80 228 826 Spaces Moved 947 | 57 149 741 Core 1 | 1 . . Treads . | . . . Legs . | . . . Wheels 946 | 56 149 741 Hover . | . . . Flight . | . . . Fastest Speed 50 | 50 80 80 Average Speed 88 | 79 80 90 Slowest Speed 95 | 80 80 95 Overloaded Moves . | . . . Propulsion Burnouts . | . . . Robots Hopped . | . . . Potential Cave-ins . | . . . Cave-ins Triggered . | . . . Exploration Rate (%) 25 | 3 33 40 Regions Visited 2 Branch Regions 1 Pre-discovered Areas . | . . . Known Exits Taken 1 | . 1 . Unknown Exits Taken 1 | 1 . . Scrap Searched . | . . . Spaces Dug . | . . . Terrain Destroyed . | . . . Melee . | . . . Projectile . | . . . AOE . | . . . Terrain Rammed . | . . . Walls Destroyed . | . . . Machines Disabled . | . . . Actions | -11 -10 -10 --------- Run | Yrd Mat Sub Total 1131 | 78 225 828 Wait 70 | . 40 30 Move 945 | 56 148 741 Hop . | . . . Pick Up 20 | 8 8 4 Fast Attach 10 | 6 1 3 Attach 3 | 1 1 1 Detach 1 | . 1 . Swap 8 | 1 3 4 Drop 16 | 1 6 9 Fire 58 | 5 17 36 Melee . | . . . Ram . | . . . Kick . | . . . Crush . | . . . Escape Stasis . | . . . Rewire . | . . . Trap . | . . . Miscellaneous . | . . . Route ------- -11/Scrapyard -10/Materials (discovered 2 exits: [*Min] / *Sub) -10/Subcaves (discovered 1 exit: *Scr) History --------- Turn | Location | Event 14 | -11/Scrapyard | Discovered new exit (range 14) 81 | -11/Scrapyard | Entered Materials 191 | -10/Materials | Discovered new exit (range 11) 303 | -10/Materials | Discovered new exit (range 7) 309 | -10/Materials | Identified exit to Subcaves 309 | -10/Materials | Entered Subcaves 310 | -10/Subcaves | Approached by a straggling Scientist 323 | -10/Subcaves | Shifting Twisted Machinery released Sub. Machine Gun 331 | -10/Subcaves | Shifting Twisted Machinery released Sub. Power Source 349 | -10/Subcaves | Build established: Mutant 436 | -10/Subcaves | Core integrity fell below 50% 587 | -10/Subcaves | Scientist uncovered a shortcut to Scraptown 603 | -10/Subcaves | Identified exit to Scraptown 635 | -10/Subcaves | A swath of the cavern ceiling suddenly collapsed 666 | -10/Subcaves | Core integrity fell below 20% 1135 | -10/Subcaves | Destroyed by OQ-N0Y(R) with Subdweller Machine Gun Last Messages --------------- 00775_ System corrupted: Matter fused (-9). 00794_ TT %LY NL M VO40%EZB1A 00801_ Q3-2JD(u) tweaks Twisted Machinery. 00844_ Subatomizers dissect the Sub. Optics. 00856_ System corrupted: Energy discharge (-64). 00879_ Acquired 14 matter. 00880_ Acquired 13 matter. 00935_ System corrupted: Matter fused (-6). 00963_ Dropped Broken Sub. Monowheel. 00963_ Acquired Wheel. 00968_ System corrupted: Matter fused (-7). 01008_ 1J9W65>C/GNN|RJKW58GRMMOS6HGMORGG 01122_ System corrupted: FCS attempts to trigger Assault Rifle. 01122_ System corrupted: Assault Rifle misfires. 01127_ Wheel destroyed. Map ----- +----------------------------------------------------+ | ?## ####????#########????######???####### # | | ??###???????????????????????????????????#### # | | ???????????????????????????????????????????### # | | ?????????????????????????????????????????????## # | | ??????????????????????????????????????????????# | | ??????????????????????????????????????????????# | | ??????????????????????????????????????????????# | | ??????????????????????????????????????????????# # | | ??????????????????????????????????????????????#### | | ????????????????????????????????????????????????## | | ???????????????????????????????????????????????## | | ??????????????????????????????????????????????## # | | ?????????????????????????????????????????????## ## | | ?????????????????????????????????????????????# ##? | | ?????????????????????????????????????????????# ##? | | ?????????????????????????????????????????????## ## | | ?????????????????????????????????????????????# # | | ???????????????????????###???##??????????????# # | | ???????????????????????" ### "##????????????# # | | ???????????????????????? """##???????????## | | ????????????????????????" " ##??????????# # | | ?????????????????????????" "" #??????????# | | ????????????????????????? " #??????# ### | | ?????????????????????????# " #?????# | | ????????????????????????##R"" #?????## #### | | ????????????????????????#@ " ##??????### ???## | | ???????????????????????## "" #?????????#???### | | ??????????????????????## " #####????????????## | | ?????????????????????## "###????????????????# | | ????????????????????## ##??????????????????# | | ????????????????????# #??????????????????## | | ????????????????????# ###????????????????# | | ????????????????????### ######???????????# | | ?????????????????????## #???????????# | | ?????????????????????# ## ##?????###??## | | ?????????????????????# ##### ##???## ##### | | ?????????????????????## ## # ##?## ### | | ??????????????????????# ### #??## | | ??????????????????????# ### ## #???## | | ?????????????????????# #?#### ##??## | | ?????????????????????# #???## #### | | ???????????????????? ##???# | | ??????????????????? ##???# " | | ????????????????? ????# ## " | | ???????????????? ???# ### " | | ???????????????### ? ### """ | | ?????????????????### ## """"" | | ??????????????????? # " """"" | | ??????????????????## ####### " """"" | | ???????????????????# ??????# ###" """"" | +----------------------------------------------------+ Best States ------------- Heat Dissipation 25 Energy Generation 15 Energy Capacity 200 Matter Stores 199 Matter Capacity 300 Sight Range 16 Terrain Scan Range 16 Terrain Scan Density 10 Evasion (%) 44 Item Schematics ----------------- None Robot Schematics ------------------ None Fabricated ------------ Nothing Repaired ---------- Nothing Alien Tech Used ----------------- None Achievements -------------- None Challenges ------------ None Game ------ Seed ResetCoolantTendrils Manual? 0 Play Time 00:14:18 Cumulative 14.0 hours Start 2025.05.15 @ 11:57:49 End 2025.05.15 @ 12:09:05 Sessions 1 Manual Loads 0 Difficulty Rogue Special Mode None Game No. 14 Rogue 14 Adventurer 0 Explorer 0 Win Type - Total 0 Types 0/0/0/0/0/0/0/0/0/0 Lore% 21 Gallery% 20 Achievement% 19 Wizard Run 0 Options --------- Layout 1 ASCII 1 Keyboard 1 Movement Vi Keybinds 0 Fullscreen 2 Font 32/SmallcapsGlow Map View 50x35 Zoom Use 0% Tactical HUD 1 Map Filters NONE Filters NONE Steam 1 RUN: 9f7a8e6b-de29-46a2-8391-c867612007bc